[Event "Sunway Sitges Chess Festival"]
[Date "2024.12.21"]
[White "Alekseenko, Kirill"]
[Black "Zheng, Harry Z"]
[WhiteElo "2673"]
[BlackElo "2248"]
[Round "2.1"]
[Result "1-0"]
[TimeControl "40/5400+30:1800+30"]

1. e4 {[%clk 1:30:42]} 1... e5 {[%clk 1:30:50]} 2. Nf3 {[%clk 1:30:55]} 2... Nc6
{[%clk 1:31:01]} 3. Bb5 {[%clk 1:31:18]} 3... a6 {[%clk 1:31:13]} 4. Ba4 {[%clk
1:31:13]} 4... Nf6 {[%clk 1:31:23]} 5. O-O {[%clk 1:30:30]} 5... Be7 {[%clk
1:31:20]} 6. Bxc6 {[%clk 1:28:38]} 6... dxc6 {[%clk 1:31:30]} 7. d3 {[%clk
1:30:36]} 7... Bd6 {[%clk 1:31:10]} 8. Nbd2 {[%clk 1:28:30]} 8... Be6 {[%clk
1:30:47]} 9. b3 {[%clk 1:28:22]} 9... Nd7 {[%clk 1:24:38]} 10. a4 {[%clk
1:25:17]} 10... O-O {[%clk 1:23:21]} 11. Kh1 {[%clk 1:27:23]} 11... c5 {[%clk
1:14:00]} 12. Nc4 {[%clk 1:22:39]} 12... b5 {[%clk 1:09:19]} 13. Ne3 {[%clk
1:23:53]} 13... Re8 {[%clk 1:03:24]} 14. axb5 {[%clk 1:21:38]} 14... axb5 {[%clk
1:03:36]} 15. Rxa8 {[%clk 1:22:02]} 15... Qxa8 {[%clk 1:03:47]} 16. Ng5 {[%clk
1:21:14]} 16... Nf8 {[%clk 1:00:42]} 17. Nf5 {[%clk 1:02:29]} 17... h6 {[%clk
0:45:17]} 18. Nxe6 {[%clk 1:19:37]} 18... fxe6 {[%clk 0:45:27]} 19. Ne3 {[%clk
1:05:50]} 19... Qd8 {[%clk 0:42:22]} 20. Qh5 {[%clk 1:06:55]} 20... Qe7 {[%clk
0:15:25]} 21. Bb2 Qf7 {[%clk 0:30:31]} 22. Qe2 Ng6 {[%clk 0:29:32]} 23. g3
{[%clk 0:54:51]} 23... Rf8 {[%clk 0:23:04]} 24. Qg4 {[%clk 0:48:15]} 24... Qf3+
{[%clk 0:21:46]} 25. Qxf3 {[%clk 0:50:12]} 25... Rxf3 {[%clk 0:22:06]} 26. Kg2
{[%clk 0:49:54]} 26... Rf8 {[%clk 0:21:54]} 27. Ra1 {[%clk 0:45:34]} 27... Rb8
{[%clk 0:21:36]} 28. Ra6 {[%clk 0:44:12]} 28... Rb6 {[%clk 0:19:20]} 29. Ra8+
{[%clk 0:48:05]} 29... Kf7 {[%clk 0:16:58]} 30. h4 {[%clk 0:44:18]} 30... Ne7
{[%clk 0:15:00]} 31. h5 {[%clk 0:43:06]} 31... Nc6 {[%clk 0:11:03]} 32. Kh3
{[%clk 0:39:41]} 32... Rb8 {[%clk 0:10:40]} 33. Ra6 {[%clk 0:38:48]} 33... Rb6
{[%clk 0:11:11]} 34. Ra1 {[%clk 0:41:59]} 34... Nb4 {[%clk 0:03:32]} 35. f4
{[%clk 0:38:03]} 35... exf4 {[%clk 0:07:02]} 36. gxf4 {[%clk 0:34:28]} 36... Ra6
{[%clk 0:05:05]} 37. Rg1 {[%clk 0:32:57]} 37... Bf8 {[%clk 0:03:29]} 38. Be5
{[%clk 0:29:27]} 38... Ra2 {[%clk 0:02:19]} 39. Rg2 {[%clk 0:32:35]} 39... c6
{[%clk 0:01:22]} 40. Bc3 {[%clk 1:02:57]} 40... Ra3 {[%clk 0:-4:-18]} 41. Ng4
{[%clk 1:01:58]} 41... Ra6 {[%clk 0:20:14]} 42. Ne5+ {[%clk 0:56:26]} 42... Ke8
43. Rg6 Ke7 {[%clk 0:18:25]} 44. f5 Nxc2 {[%clk 0:15:26]} 45. Rxe6+ {[%clk
0:56:57]} 45... Kd8 {[%clk 0:15:47]} 46. Nxc6+ {[%clk 0:53:28]} 46... Kc8 {[%clk
0:13:10]} 47. Ne7+ {[%clk 0:56:30]} 47... Kb7 {[%clk 0:13:30]} 48. Rxa6 {[%clk
0:56:46]} 48... Kxa6 {[%clk 0:13:50]} 49. Ng6 {[%clk 0:57:13]} 1-0

[Variant "Standard"]
[Site "Europe Echecs"]

[Event "Sunway Sitges Chess Festival"]
[Date "2024.12.21"]
[White "Shukhman, Anna"]
[Black "Moussard, Jules"]
[WhiteElo "2245"]
[BlackElo "2649"]
[Round "2.2"]
[Result "1/2-1/2"]
[TimeControl "40/5400+30:1800+30"]

1. e4 {[%clk 1:30:58]} 1... c5 {[%clk 1:29:40]} 2. Nf3 {[%clk 1:31:22]} 2... e6
{[%clk 1:30:06]} 3. d4 {[%clk 1:31:51]} 3... cxd4 {[%clk 1:30:30]} 4. Nxd4
{[%clk 1:32:19]} 4... Nc6 {[%clk 1:30:53]} 5. Nc3 {[%clk 1:32:47]} 5... Qc7
{[%clk 1:31:11]} 6. Be3 {[%clk 1:33:15]} 6... a6 {[%clk 1:29:58]} 7. g4 {[%clk
1:32:56]} 7... Nxd4 {[%clk 1:30:58]} 8. Qxd4 {[%clk 1:30:31]} 8... b5 {[%clk
1:31:16]} 9. O-O-O {[%clk 1:28:52]} 9... Bb7 {[%clk 1:31:28]} 10. Kb1 {[%clk
1:27:30]} 10... Nf6 {[%clk 1:02:21]} 11. g5 {[%clk 1:10:04]} 11... Ng4 {[%clk
0:59:43]} 12. Bf4 {[%clk 1:09:28]} 12... e5 {[%clk 0:46:40]} 13. Nd5 {[%clk
1:09:33]} 13... Qd6 {[%clk 0:45:35]} 14. Qc3 {[%clk 1:03:29]} 14... Rc8 15. Qg3
{[%clk 0:53:25]} 15... Qc5 16. Qxg4 Bxd5 {[%clk 0:30:14]} 17. exd5 {[%clk
0:47:31]} 17... Qxc2+ {[%clk 0:30:30]} 18. Ka1 {[%clk 0:47:59]} 18... Ba3 {[%clk
0:28:04]} 19. bxa3 {[%clk 0:24:18]} 19... Qc3+ {[%clk 0:28:14]} 20. Kb1 {[%clk
0:24:45]} 20... Qc2+ {[%clk 0:28:39]} 21. Ka1 {[%clk 0:25:12]} 1/2-1/2

[Variant "Standard"]
[Site "Europe Echecs"]

[Event "Sunway Sitges Chess Festival"]
[Date "2024.12.21"]
[White "Tin, Jingyao"]
[Black "Lee, Jun Wei"]
[WhiteElo "2480"]
[BlackElo "2238"]
[Round "2.3"]
[Result "1-0"]
[TimeControl "40/5400+30:1800+30"]

1. c4 {[%clk 1:30:37]} 1... e6 {[%clk 1:30:34]} 2. g3 {[%clk 1:30:54]} 2... d5
{[%clk 1:30:25]} 3. Bg2 {[%clk 1:31:02]} 3... Nf6 {[%clk 1:29:57]} 4. Nf3 {[%clk
1:31:21]} 4... d4 {[%clk 1:29:15]} 5. d3 {[%clk 1:29:28]} 5... c5 {[%clk
1:26:29]} 6. e4 {[%clk 1:29:44]} 6... Nc6 {[%clk 1:23:34]} 7. e5 {[%clk
1:29:55]} 7... Nd7 {[%clk 1:23:24]} 8. Qe2 {[%clk 1:29:36]} 8... Be7 {[%clk
1:14:55]} 9. h4 {[%clk 1:29:13]} 9... Rb8 {[%clk 1:07:40]} 10. O-O {[%clk
1:20:09]} 10... Qc7 {[%clk 1:03:42]} 11. Bf4 {[%clk 1:18:40]} 11... b5 {[%clk
0:-4:-38]} 12. cxb5 Rxb5 {[%clk 0:46:50]} 13. Na3 Rb4 {[%clk 0:43:24]} 14. Nc4
{[%clk 0:37:48]} 14... O-O {[%clk 0:41:53]} 15. Rfc1 Ba6 {[%clk 0:31:50]} 16.
Nfd2 Na5 {[%clk 0:19:50]} 17. a3 {[%clk 0:26:20]} 17... Rbb8 {[%clk 0:19:57]}
18. Nxa5 {[%clk 0:24:31]} 18... Qxa5 {[%clk 0:20:25]} 19. b4 {[%clk 0:22:49]}
19... Qd8 {[%clk 0:17:47]} 20. Nb3 {[%clk 0:18:46]} 20... Rc8 {[%clk 0:15:15]}
21. Na5 {[%clk 0:15:56]} 21... Qb6 {[%clk 0:13:24]} 22. Qe4 {[%clk 0:15:34]}
22... Kh8 {[%clk 0:05:11]} 23. Bd2 {[%clk 0:03:55]} 23... Rfd8 {[%clk 0:02:40]}
24. Nc4 {[%clk 0:03:48]} 24... Bxc4 {[%clk 0:02:40]} 25. Rxc4 {[%clk 0:04:08]}
25... cxb4 {[%clk 0:02:01]} 26. axb4 {[%clk 0:04:28]} 26... Nb8 {[%clk 0:00:40]}
27. Qb7 {[%clk 0:02:52]} 27... Rxc4 {[%clk 0:00:31]} 28. dxc4 {[%clk 0:03:04]}
28... Qxb7 {[%clk 0:00:32]} 29. Bxb7 {[%clk 0:03:32]} 29... Rd7 30. Ba8 {[%clk
0:02:17]} 30... g6 {[%clk 0:00:33]} 31. c5 {[%clk 0:02:22]} 31... Rc7 {[%clk
0:00:31]} 32. f4 {[%clk 0:01:57]} 32... Kg7 {[%clk 0:00:41]} 33. Kf1 {[%clk
0:01:45]} 33... f6 {[%clk 0:00:38]} 34. Ke2 {[%clk 0:01:39]} 34... fxe5 {[%clk
0:00:32]} 35. fxe5 {[%clk 0:02:04]} 35... h6 {[%clk 0:00:32]} 36. Kd3 {[%clk
0:01:36]} 36... Nd7 {[%clk 0:00:34]} 37. Kxd4 {[%clk 0:01:42]} 1-0

[Variant "Standard"]
[Site "Europe Echecs"]

[Event "Sunway Sitges Chess Festival"]
[Date "2024.12.21"]
[White "Adharsh K"]
[Black "Maurizzi, Marc`Andria"]
[WhiteElo "2235"]
[BlackElo "2477"]
[Round "2.4"]
[Result "0-1"]
[TimeControl "40/5400+30:1800+30"]

1. e4 {[%clk 1:30:35]} 1... e5 {[%clk 1:30:55]} 2. Nf3 {[%clk 1:30:54]} 2... Nc6
{[%clk 1:31:23]} 3. Bc4 {[%clk 1:31:12]} 3... Nf6 {[%clk 1:30:28]} 4. d3 {[%clk
1:31:35]} 4... Bc5 {[%clk 1:30:55]} 5. O-O {[%clk 1:31:54]} 5... d6 {[%clk
1:31:22]} 6. c3 {[%clk 1:32:18]} 6... a6 {[%clk 1:31:49]} 7. a4 {[%clk 1:32:29]}
7... Ba7 {[%clk 1:31:27]} 8. Nbd2 {[%clk 1:32:32]} 8... Nh5 {[%clk 1:31:20]} 9.
Re1 {[%clk 1:29:02]} 9... Nf4 {[%clk 1:31:16]} 10. Nf1 {[%clk 1:27:10]} 10... g5
{[%clk 1:31:43]} 11. Be3 {[%clk 1:18:57]} 11... g4 {[%clk 1:32:08]} 12. N3d2
{[%clk 1:18:12]} 12... h5 {[%clk 1:32:30]} 13. Bxa7 {[%clk 1:13:42]} 13... Nxa7
{[%clk 1:32:54]} 14. Ne3 {[%clk 1:13:58]} 14... Nc6 {[%clk 1:33:21]} 15. Ndf1
{[%clk 1:14:19]} 15... Qg5 {[%clk 1:25:16]} 16. d4 {[%clk 1:06:03]} 16... Bd7
{[%clk 1:11:17]} 17. b4 {[%clk 1:06:24]} 17... O-O {[%clk 0:56:23]} 18. Qd2
{[%clk 0:59:37]} 18... Ne7 {[%clk 0:49:22]} 19. Kh1 Rad8 {[%clk 0:43:36]} 20.
Nd5 {[%clk 0:56:08]} 20... Nexd5 {[%clk 0:43:34]} 21. Bxd5 c6 {[%clk 0:43:28]}
22. Bb3 {[%clk 0:54:09]} 22... Be6 {[%clk 0:40:55]} 23. Bc2 {[%clk 0:49:38]}
23... h4 {[%clk 0:35:06]} 24. g3 {[%clk 0:38:55]} 24... hxg3 {[%clk 0:30:07]}
25. fxg3 {[%clk 0:39:19]} 25... Nh3 {[%clk 0:30:33]} 26. Qxg5+ {[%clk 0:39:17]}
26... Nxg5 {[%clk 0:31:02]} 27. Ne3 {[%clk 0:37:46]} 27... Kg7 {[%clk 0:24:29]}
28. d5 {[%clk 0:30:14]} 28... Bd7 {[%clk 0:22:16]} 29. dxc6 {[%clk 0:28:40]}
29... Bxc6 {[%clk 0:22:44]} 30. Nf5+ {[%clk 0:28:18]} 30... Kf6 {[%clk 0:19:31]}
31. Ne3 {[%clk 0:27:05]} 31... Ke7 {[%clk 0:13:58]} 32. Nf5+ {[%clk 0:20:10]}
32... Kf6 {[%clk 0:13:23]} 33. b5 {[%clk 0:14:03]} 33... axb5 {[%clk 0:10:47]}
34. axb5 {[%clk 0:14:32]} 34... Bxb5 {[%clk 0:11:10]} 35. Ne3 {[%clk 0:14:53]}
35... Bc6 {[%clk 0:05:35]} 36. Nxg4+ {[%clk 0:15:18]} 36... Ke7 {[%clk 0:05:20]}
37. h4 {[%clk 0:14:52]} 37... f5 38. Nh6 {[%clk 0:03:36]} 38... Nf3 {[%clk
0:03:02]} 39. Re3 {[%clk 0:03:53]} 39... Nd2 {[%clk 0:03:09]} 40. Rd1 {[%clk
0:33:26]} 40... Nc4 {[%clk 0:33:17]} 41. Rf3 {[%clk 0:27:32]} 41... fxe4 {[%clk
0:32:01]} 42. Rxf8 {[%clk 0:27:56]} 42... Rxf8 {[%clk 0:31:57]} 43. Re1 {[%clk
0:28:22]} 43... Nd2 {[%clk 0:29:12]} 44. Kg2 {[%clk 0:28:39]} 44... e3+ {[%clk
0:25:53]} 45. Kh3 {[%clk 0:29:06]} 45... Bd7+ {[%clk 0:26:13]} 46. g4 {[%clk
0:29:26]} 46... Rf3+ {[%clk 0:25:15]} 47. Kh2 {[%clk 0:29:55]} 47... Rf2+ {[%clk
0:25:35]} 48. Kh3 {[%clk 0:30:22]} 48... Nf1 {[%clk 0:24:12]} 0-1

[Variant "Standard"]
[Site "Europe Echecs"]

[Event "Sunway Sitges Chess Festival"]
[Date "2024.12.21"]
[White "Li, Di"]
[Black "Webb, Laurence E"]
[WhiteElo "2440"]
[BlackElo "2219"]
[Round "2.5"]
[Result "1/2-1/2"]
[TimeControl "40/5400+30:1800+30"]

1. Nf3 {[%clk 1:30:53]} 1... Nf6 {[%clk 1:30:33]} 2. g3 {[%clk 1:31:10]} 2... d5
{[%clk 1:30:41]} 3. Bg2 {[%clk 1:31:33]} 3... c6 {[%clk 1:30:42]} 4. O-O {[%clk
1:31:35]} 4... Bg4 {[%clk 1:30:28]} 5. h3 {[%clk 1:31:24]} 5... Bxf3 {[%clk
1:28:08]} 6. Bxf3 {[%clk 1:31:47]} 6... e5 {[%clk 1:28:28]} 7. d3 {[%clk
1:32:09]} 7... Nbd7 {[%clk 1:28:30]} 8. e4 {[%clk 1:32:11]} 8... dxe4 {[%clk
1:28:04]} 9. dxe4 {[%clk 1:32:36]} 9... Bc5 {[%clk 1:27:35]} 10. a4 {[%clk
1:32:20]} 10... a5 {[%clk 1:24:51]} 11. Nd2 {[%clk 1:32:38]} 11... O-O {[%clk
1:23:34]} 12. Qe2 {[%clk 1:32:06]} 12... Re8 {[%clk 1:17:00]} 13. Rd1 {[%clk
1:31:48]} 13... Qc7 {[%clk 1:15:58]} 14. Kg2 {[%clk 1:31:58]} 14... Nf8 {[%clk
1:14:27]} 15. Nc4 {[%clk 1:30:33]} 15... Ne6 {[%clk 1:12:33]} 16. c3 {[%clk
1:30:23]} 16... Rad8 {[%clk 1:11:15]} 17. Rxd8 {[%clk 1:24:51]} 17... Rxd8
{[%clk 1:10:36]} 18. h4 {[%clk 1:15:09]} 18... h6 {[%clk 1:03:29]} 19. Bd2
{[%clk 1:18:43]} 19... Bf8 {[%clk 0:59:09]} 20. Ra2 {[%clk 1:05:02]} 20... Bc5
{[%clk 0:49:51]} 21. Be1 {[%clk 1:00:54]} 21... Bf8 {[%clk 0:48:52]} 22. Qc2
{[%clk 0:57:36]} 22... h5 23. b3 {[%clk 0:52:58]} 23... g6 {[%clk 0:39:35]} 24.
Qb1 {[%clk 0:43:42]} 24... Kh7 {[%clk 0:36:29]} 25. Be2 {[%clk 0:40:46]} 25...
Rd7 {[%clk 0:31:37]} 26. Nd2 {[%clk 0:36:49]} 26... Nc5 {[%clk 0:24:50]} 27. b4
{[%clk 0:35:29]} 27... axb4 {[%clk 0:23:34]} 28. cxb4 {[%clk 0:35:52]} 28... Ne6
{[%clk 0:23:29]} 29. Nf3 {[%clk 0:36:08]} 29... Nd4 {[%clk 0:19:51]} 30. Nxd4
{[%clk 0:34:39]} 30... exd4 {[%clk 0:18:27]} 31. a5 {[%clk 0:30:54]} 31... Qd6
{[%clk 0:15:45]} 32. b5 {[%clk 0:21:07]} 32... cxb5 {[%clk 0:12:57]} 33. Bxb5
{[%clk 0:21:30]} 33... Rc7 {[%clk 0:12:16]} 34. Rb2 {[%clk 0:19:14]} 34... Ng4
{[%clk 0:10:33]} 35. Bf1 {[%clk 0:14:30]} 35... Qd7 {[%clk 0:09:15]} 36. Rb5
{[%clk 0:13:26]} 36... Bg7 {[%clk 0:09:11]} 37. Bd2 {[%clk 0:12:41]} 37... Qc6
{[%clk 0:04:49]} 38. Bd3 {[%clk 0:10:41]} 38... Rd7 {[%clk 0:01:53]} 39. Rb6
{[%clk 0:08:35]} 39... Qc8 {[%clk 0:01:26]} 40. Qb5 {[%clk 0:31:41]} 40... Ne5
{[%clk 0:31:05]} 41. Bf4 {[%clk 0:29:22]} 41... Nxd3 {[%clk 0:28:14]} 42. Qxd3
{[%clk 0:29:43]} 42... Qc5 {[%clk 0:27:01]} 43. Bd2 {[%clk 0:22:00]} 43... Kg8
{[%clk 0:24:25]} 44. Rb1 {[%clk 0:17:45]} 44... Qc6 {[%clk 0:21:59]} 45. Rc1
{[%clk 0:17:55]} 45... Qe6 {[%clk 0:21:48]} 46. f3 {[%clk 0:14:55]} 46... Kh7
{[%clk 0:20:24]} 47. Qc4 {[%clk 0:14:45]} 47... Qxc4 {[%clk 0:18:58]} 48. Rxc4
{[%clk 0:15:12]} 48... f5 {[%clk 0:17:58]} 49. exf5 {[%clk 0:05:52]} 49... gxf5
{[%clk 0:18:26]} 50. Kf2 {[%clk 0:05:34]} 50... d3 {[%clk 0:17:14]} 51. Ke3
{[%clk 0:04:09]} 51... Bh6+ {[%clk 0:16:10]} 52. f4 {[%clk 0:04:35]} 52... Bg7
{[%clk 0:15:35]} 53. Bb4 {[%clk 0:04:04]} 53... Kg6 {[%clk 0:14:21]} 54. Bd2
{[%clk 0:02:33]} 54... Kf7 {[%clk 0:14:05]} 55. Rb4 {[%clk 0:02:47]} 55... Bf6
{[%clk 0:11:26]} 56. Rb5 {[%clk 0:02:57]} 56... Ke6 {[%clk 0:10:51]} 57. Bb4
{[%clk 0:02:12]} 57... Bg7 {[%clk 0:10:17]} 58. Rb6+ {[%clk 0:01:55]} 58... Kf7
{[%clk 0:09:55]} 59. Kd2 {[%clk 0:02:03]} 59... Bf6 {[%clk 0:08:55]} 60. Rb5
{[%clk 0:00:57]} 60... Ke6 {[%clk 0:09:05]} 61. Ke3 {[%clk 0:00:34]} 61... Bg7
{[%clk 0:08:33]} 62. Be1 {[%clk 0:00:40]} 62... Bf6 {[%clk 0:08:34]} 63. Kd2
{[%clk 0:00:50]} 63... Bg7 {[%clk 0:07:43]} 64. Rb6+ {[%clk 0:00:56]} 64... Kf7
{[%clk 0:07:41]} 65. Rb3 {[%clk 0:01:09]} 65... Ke6 {[%clk 0:07:56]} 66. Bf2
{[%clk 0:01:15]} 66... Bf6 {[%clk 0:08:00]} 67. Ba7 {[%clk 0:00:52]} 67... Bd8
{[%clk 0:06:49]} 68. Bb6 {[%clk 0:01:06]} 68... Bf6 {[%clk 0:07:10]} 69. Rb1
{[%clk 0:00:41]} 69... Kf7 {[%clk 0:06:58]} 70. Bc5 {[%clk 0:00:31]} 70... Ke6
{[%clk 0:06:30]} 71. Rb6+ {[%clk 0:00:40]} 71... Kf7 {[%clk 0:06:54]} 72. Be3
{[%clk 0:00:42]} 72... Bg7 {[%clk 0:06:03]} 73. Kd1 {[%clk 0:00:47]} 73... Bf6
{[%clk 0:06:07]} 74. Rb5 {[%clk 0:00:43]} 74... Ke6 {[%clk 0:06:29]} 75. Bc1
{[%clk 0:00:49]} 75... Bg7 {[%clk 0:06:03]} 76. Kd2 {[%clk 0:00:41]} 76... Bf6
{[%clk 0:05:02]} 77. Rb6+ {[%clk 0:00:47]} 77... Kf7 {[%clk 0:05:26]} 78. Bb2
{[%clk 0:00:38]} 78... Bd8 {[%clk 0:01:49]} 79. Rb5 {[%clk 0:01:05]} 79... Kg6
{[%clk 0:02:05]} 80. Bc3 {[%clk 0:01:20]} 80... Be7 {[%clk 0:01:49]} 81. Rb6+
{[%clk 0:01:29]} 81... Kh7 {[%clk 0:01:37]} 82. Re6 {[%clk 0:01:11]} 82... Bd8
{[%clk 0:01:38]} 83. Re8 {[%clk 0:00:47]} 83... Kg6 {[%clk 0:01:11]} 84. Rf8
{[%clk 0:00:32]} 84... Rd5 {[%clk 0:00:53]} 85. Rg8+ {[%clk 0:00:51]} 85... Kf7
{[%clk 0:00:42]} 86. Rg7+ {[%clk 0:00:56]} 86... Ke6 {[%clk 0:00:56]} 87. Rxb7
{[%clk 0:00:41]} 87... Bxa5 {[%clk 0:01:16]} 88. Bxa5 {[%clk 0:01:07]} 88...
Rxa5 {[%clk 0:01:43]} 89. Rg7 {[%clk 0:00:57]} 89... Kd5 {[%clk 0:00:45]} 90.
Kxd3 {[%clk 0:01:17]} 90... Ra3+ {[%clk 0:01:08]} 91. Ke2 {[%clk 0:01:37]} 91...
Ra2+ {[%clk 0:01:10]} 92. Kf3 {[%clk 0:01:29]} 92... Ra3+ {[%clk 0:01:35]} 93.
Kf2 {[%clk 0:01:01]} 93... Ra2+ {[%clk 0:01:57]} 94. Kf3 {[%clk 0:00:34]} 94...
Ra3+ {[%clk 0:02:23]} 95. Kg2 {[%clk 0:00:33]} 95... Ra2+ {[%clk 0:02:39]} 96.
Kh3 {[%clk 0:00:39]} 96... Ke4 {[%clk 0:02:01]} 97. Rb7 {[%clk 0:01:00]} 97...
Ra3 {[%clk 0:01:14]} 98. Rb1 {[%clk 0:01:10]} 98... Kf3 {[%clk 0:01:17]} 99.
Rf1+ {[%clk 0:01:03]} 99... Ke2 {[%clk 0:00:45]} 100. Rg1 {[%clk 0:00:53]}
100... Kf3 {[%clk 0:00:42]} 101. Rb1 {[%clk 0:00:50]} 101... Re3 {[%clk
0:00:50]} 102. Rb2 {[%clk 0:01:02]} 102... Rd3 {[%clk 0:00:46]} 103. Rb5 {[%clk
0:01:10]} 103... Ra3 {[%clk 0:00:39]} 104. Rb1 {[%clk 0:01:03]} 104... Rc3
{[%clk 0:00:58]} 105. Rf1+ {[%clk 0:01:06]} 105... Ke2 {[%clk 0:01:18]} 106. Kg2
{[%clk 0:00:44]} 106... Rxg3+ {[%clk 0:01:20]} 107. Kxg3 {[%clk 0:01:09]} 107...
Kxf1 {[%clk 0:01:46]} 108. Kf3 {[%clk 0:01:34]} 108... Kg1 {[%clk 0:02:00]} 109.
Kg3 {[%clk 0:01:54]} 1/2-1/2

[Variant "Standard"]
[Site "Europe Echecs"]

[Event "Sunway Sitges Chess Festival"]
[Date "2024.12.21"]
[White "Gorshtein, Ido"]
[Black "Tejaswini G"]
[WhiteElo "2422"]
[BlackElo "2211"]
[Round "2.7"]
[Result "1-0"]
[TimeControl "40/5400+30:1800+30"]

1. d4 {[%clk 1:30:56]} 1... Nf6 {[%clk 1:30:46]} 2. c4 {[%clk 1:31:18]} 2... g6
{[%clk 1:31:12]} 3. Nc3 {[%clk 1:31:45]} 3... Bg7 {[%clk 1:31:36]} 4. e4 {[%clk
1:32:07]} 4... d6 {[%clk 1:32:01]} 5. h3 {[%clk 1:32:29]} 5... O-O {[%clk
1:32:23]} 6. Be3 {[%clk 1:32:56]} 6... Nbd7 {[%clk 1:32:46]} 7. Nf3 {[%clk
1:32:07]} 7... e5 {[%clk 1:32:55]} 8. d5 {[%clk 1:32:28]} 8... Nc5 {[%clk
1:33:12]} 9. Nd2 {[%clk 1:32:46]} 9... a5 {[%clk 1:33:02]} 10. Be2 {[%clk
1:32:18]} 10... c6 {[%clk 1:32:47]} 11. O-O {[%clk 1:29:36]} 11... cxd5 {[%clk
1:32:42]} 12. cxd5 {[%clk 1:29:23]} 12... Ne8 {[%clk 1:21:43]} 13. Bb5 {[%clk
0:50:08]} 13... Nc7 {[%clk 1:07:03]} 14. a4 {[%clk 1:04:00]} 14... N7a6 {[%clk
1:02:41]} 15. Nc4 {[%clk 1:02:26]} 15... Nb4 {[%clk 0:51:11]} 16. Bxc5 {[%clk
1:00:20]} 16... dxc5 {[%clk 0:51:38]} 17. Qe2 {[%clk 0:57:46]} 17... f5 {[%clk
0:41:32]} 18. exf5 {[%clk 0:52:24]} 18... Bxf5 {[%clk 0:40:57]} 19. Nxe5 {[%clk
0:44:31]} 19... Nc2 {[%clk 0:35:44]} 20. Rad1 {[%clk 0:43:22]} 20... Nd4 {[%clk
0:35:27]} 21. Qe3 {[%clk 0:43:13]} 21... Bxh3 {[%clk 0:29:27]} 22. f4 {[%clk
0:34:09]} 22... Bf5 {[%clk 0:28:02]} 23. Bc4 {[%clk 0:33:56]} 23... Qd6 {[%clk
0:20:14]} 24. Nb5 {[%clk 0:14:44]} 24... Nxb5 {[%clk 0:20:28]} 25. Bxb5 {[%clk
0:15:11]} 25... g5 {[%clk 0:19:23]} 26. Nc4 {[%clk 0:14:28]} 26... Bd4 {[%clk
0:14:46]} 27. Qxd4 {[%clk 0:14:28]} 27... cxd4 {[%clk 0:13:30]} 28. Nxd6 {[%clk
0:14:51]} 1-0

[Variant "Standard"]
[Site "Europe Echecs"]

[Event "Sunway Sitges Chess Festival"]
[Date "2024.12.21"]
[White "Ivanchuk, Vasyl"]
[Black "Sikkam Sai Vishnu"]
[WhiteElo "2630"]
[BlackElo "1653"]
[Round "2.9"]
[Result "1-0"]
[TimeControl "40/5400+30:1800+30"]

1. Nf3 {[%clk 1:30:55]} 1... Nf6 {[%clk 1:30:43]} 2. c4 {[%clk 1:31:21]} 2... c5
{[%clk 1:30:52]} 3. Nc3 {[%clk 1:31:43]} 3... Nc6 {[%clk 1:31:00]} 4. d4 {[%clk
1:31:17]} 4... cxd4 {[%clk 1:30:12]} 5. Nxd4 {[%clk 1:31:40]} 5... g6 {[%clk
1:28:09]} 6. e4 {[%clk 1:31:07]} 6... d6 {[%clk 1:28:30]} 7. f3 {[%clk 1:30:52]}
7... a6 {[%clk 1:28:48]} 8. Be3 {[%clk 1:30:08]} 8... h5 {[%clk 1:28:57]} 9. Be2
{[%clk 1:28:53]} 9... Bg7 {[%clk 1:29:12]} 10. Qd2 {[%clk 1:28:26]} 10... Bd7
{[%clk 1:25:57]} 11. O-O {[%clk 1:28:01]} 11... O-O {[%clk 1:24:11]} 12. Rfd1
{[%clk 1:26:45]} 12... Nxd4 {[%clk 1:10:23]} 13. Bxd4 {[%clk 1:26:10]} 13... Bc6
{[%clk 1:08:48]} 14. b4 {[%clk 1:25:57]} 14... b6 {[%clk 1:01:37]} 15. Rac1
{[%clk 1:25:47]} 15... e6 {[%clk 0:48:57]} 16. Be3 {[%clk 1:22:13]} 16... Ne8
{[%clk 0:46:00]} 17. c5 {[%clk 1:21:52]} 17... bxc5 {[%clk 0:44:09]} 18. bxc5
{[%clk 1:22:20]} 18... d5 {[%clk 0:37:23]} 19. exd5 {[%clk 1:22:21]} 19... exd5
{[%clk 0:30:59]} 20. Nxd5 {[%clk 1:22:03]} 20... Nc7 {[%clk 0:26:39]} 21. Bc4
{[%clk 1:20:05]} 21... Nxd5 {[%clk 0:21:02]} 22. Bxd5 {[%clk 1:19:54]} 22...
Bxd5 {[%clk 0:18:28]} 23. Qxd5 {[%clk 1:20:13]} 23... Qc7 {[%clk 0:17:51]} 24.
Qc4 {[%clk 1:14:26]} 24... Be5 {[%clk 0:16:53]} 25. f4 {[%clk 1:14:25]} 25...
Bf6 {[%clk 0:17:08]} 26. Rd6 {[%clk 1:14:24]} 26... Qe7 {[%clk 0:14:33]} 27. Bf2
{[%clk 1:13:28]} 27... Kg7 {[%clk 0:11:09]} 28. Rxf6 {[%clk 1:11:41]} 28... Rh8
{[%clk 0:08:30]} 1-0

[Variant "Standard"]
[Site "Europe Echecs"]

[Event "Sunway Sitges Chess Festival"]
[Date "2024.12.21"]
[White "Marie, Maxime"]
[Black "Vetokhin, Savva"]
[WhiteElo "2196"]
[BlackElo "2502"]
[Round "2.10"]
[Result "0-1"]
[TimeControl "40/5400+30:1800+30"]

1. c4 e6 2. Nf3 {[%clk 1:31:07]} 2... Nf6 3. Nc3 d5 4. e3 Bd6 {[%clk 1:29:58]}
5. b3 {[%clk 1:29:53]} 5... O-O 6. Bb2 Re8 7. Nb5 Be7 8. Be5 Na6 9. Rc1 {[%clk
1:27:56]} 9... c6 10. Nc3 {[%clk 1:14:25]} 10... Nc5 11. Qc2 {[%clk 0:53:33]}
11... Ncd7 12. Bg3 {[%clk 0:43:14]} 12... Ba3 13. Rd1 {[%clk 0:36:14]} 13... Qa5
14. Be2 {[%clk 0:58:49]} 14... dxc4 15. bxc4 {[%clk 0:54:24]} 15... Bb4 16. h4
{[%clk 0:49:10]} 16... h6 {[%clk 0:51:37]} 17. Nd4 {[%clk 0:46:19]} 17... e5
{[%clk 0:50:23]} 18. Nb3 {[%clk 0:41:15]} 18... Qd8 {[%clk 0:50:01]} 19. O-O
Bxc3 20. Qxc3 Ne4 21. Qc2 Nxg3 {[%clk 0:47:22]} 22. fxg3 Qe7 {[%clk 0:43:25]}
23. c5 {[%clk 0:32:43]} 23... Nf6 {[%clk 0:36:25]} 24. Na5 Rd8 {[%clk 0:31:14]}
25. Rb1 Qc7 {[%clk 0:27:46]} 26. Bc4 {[%clk 0:14:16]} 26... e4 {[%clk 0:23:02]}
27. Qc3 {[%clk 0:04:27]} 27... Nd5 {[%clk 0:25:06]} 28. Qd4 {[%clk 0:00:31]}
28... Qxa5 29. Rxf7 {[%clk 0:10:23]} 29... Kxf7 30. Qxe4 {[%clk 0:06:59]} 30...
Qc7 31. Qh7 {[%clk 0:08:07]} 31... Be6 {[%clk 0:19:21]} 32. h5 {[%clk 0:03:40]}
32... Qe7 33. g4 {[%clk 0:02:57]} 33... Nf6 34. Qg6+ {[%clk 0:02:26]} 34... Kf8
{[%clk 0:15:06]} 0-1

[Variant "Standard"]
[Site "Europe Echecs"]